fUST/lending_fUST_20250724
["ID","MTS","AMOUNT","RATE_DAILY","PERIOD"]
[374568822,1753359058804,-467.08440281,0.00020821,2]
[374568823,1753359058814,-1102.32,0.00020821,2]
[374568824,1753359058825,-643.03,0.00020821,2]
[374568825,1753359058834,-721.5,0.00020821,2]
[374568826,1753359058843,-536.66,0.00020821,2]
[374568827,1753359058854,-460.0,0.00020821,2]
[374568828,1753359058864,-460.0,0.00020821,2]
[374568829,1753359058875,-460.0,0.00020821,2]
[374568830,1753359058885,-1239.72,0.00020821,2]
[374568831,1753359058895,-460.0,0.00020821,2]
[374568832,1753359058904,-460.0,0.00020821,2]
[374568833,1753359058914,-460.0,0.00020821,2]
[374568834,1753359058923,-460.0,0.00020821,2]
[374568835,1753359058933,-474.28,0.00020821,2]
[374568836,1753359058942,-695.52,0.00020821,2]
[374568837,1753359058951,-151.708702,0.00020821,2]
[374568838,1753359058961,-614.93,0.00020821,2]
[374568839,1753359058970,-460.0,0.00020821,2]
[374568840,1753359058980,-460.0,0.00020821,2]
[374568841,1753359058990,-602.97,0.00020821,2]
[374568842,1753359059000,-460.0,0.00020821,2]
[374568843,1753359059011,-460.0,0.00020821,2]
[374568844,1753359059028,-460.0,0.00020821,2]
[374568845,1753359059046,-547.38,0.00020821,2]
[374568846,1753359059064,-460.0,0.00020821,2]
[374568847,1753359059074,-460.0,0.00020821,2]
[374568848,1753359059084,-570.67,0.00020821,2]
[374568849,1753359059104,-460.0,0.00020821,2]
[374568850,1753359059114,-2410.32,0.00020821,2]
[374568851,1753359059125,-460.0,0.00020821,2]
[374568852,1753359059134,-464.9395928,0.00020821,2]
[374568853,1753359059143,-573.06,0.00020821,2]
[374568854,1753359059153,-573.59,0.00020821,2]
[374568855,1753359059163,-460.0,0.00020821,2]
[374568856,1753359059172,-460.0,0.00020821,2]
[374568857,1753359059181,-701.0,0.00020821,2]
[374568858,1753359059191,-460.0,0.00020821,2]
[374568859,1753359059201,-5756.37,0.00020821,2]
[374568860,1753359059210,-1810.46,0.00020821,2]
[374568861,1753359059220,-460.0,0.00020821,2]
[374568862,1753359059230,-959.34,0.00020821,2]
[374568863,1753359059239,-460.0,0.00020821,2]
[374568864,1753359059249,-707.55,0.00020821,2]
[374568865,1753359059258,-460.0,0.00020821,2]
[374568866,1753359059269,-944.6,0.00020821,2]
[374568867,1753359059278,-460.0,0.00020821,2]
[374568868,1753359059288,-1286.44,0.00020821,2]
[374568869,1753359059299,-460.0,0.00020821,2]
[374568870,1753359059309,-401.59395468,0.00020821,2]
[374568871,1753359059319,-533.7,0.00020821,2]
[374568872,1753359059329,-537.03226354,0.00020821,2]
[374568873,1753359059340,-460.0,0.00020821,2]
[374568874,1753359059351,-764.53,0.00020821,2]
[374568875,1753359059361,-460.0,0.00020821,2]
[374568876,1753359059372,-460.0,0.00020821,2]
[374568877,1753359059381,-2933.32,0.00020821,2]
[374568878,1753359059391,-460.0,0.00020821,2]
[374568879,1753359059400,-479.16,0.00020821,2]
[374568880,1753359059410,-575.0,0.00020821,2]
[374568881,1753359059419,-3445.18,0.00020821,2]
[374568882,1753359059428,-460.0,0.00020821,2]
[374568883,1753359059438,-626.2,0.00020821,2]
[374568884,1753359059447,-460.0,0.00020821,2]
[374568885,1753359059457,-1738.24,0.00020821,2]
[374568886,1753359059467,-460.0,0.00020821,2]
[374568887,1753359059476,-460.0,0.00020821,2]
[374568888,1753359059486,-1496.43,0.00020821,2]
[374568889,1753359059495,-460.0,0.00020821,2]
[374568890,1753359059507,-460.0,0.00020821,2]
[374568891,1753359059516,-460.0,0.00020821,2]
[374568892,1753359059525,-460.0,0.00020821,2]
[374568893,1753359059535,-594.34,0.00020821,2]
[374568894,1753359059544,-460.0,0.00020821,2]
[374568895,1753359059554,-467.43991015,0.00020821,2]
[374568896,1753359059563,-5000.0,0.00020862,3]
[374568897,1753359059572,-917.323,0.0002088,2]
[374568898,1753359059581,-178.70934786,0.0002088,2]
[374568899,1753359059590,-500.0,0.00020889,2]
[374568900,1753359059599,-500.0,0.00020894,2]
[374568901,1753359059609,-420.0,0.00020899,2]
[374568902,1753359059620,-6000.0,0.00020924,3]
[374568903,1753359059629,-160.0,0.00020924,3]
[374568904,1753359059638,-355.88924068,0.00020924,3]
[374568905,1753359059648,-2101.69450456,0.00020934,4]
[374568906,1753359059658,-501.01581911,0.0002095,2]
[374568907,1753359059667,-500.0,0.0002095,2]
[374568908,1753359059677,-501.42269042,0.0002095,2]
[374568909,1753359059687,-500.0,0.00020963,2]
[374568910,1753359059697,-500.0,0.00020963,2]
[374568911,1753359059709,-916.81750488,0.00020993,2]
[374568912,1753359059718,-260.0,0.00021002,2]
[374568913,1753359059728,-2000.0,0.00021012,3]
[374568914,1753359059737,-500.0,0.00021064,2]
[374568915,1753359059747,-1170.95025122,0.00021068,2]
[374568916,1753359059756,-8056.31815782,0.00021071,2]
[374568917,1753359059767,-6919.09713743,0.00021095,2]
[374568918,1753359059781,-460.0,0.00021095,2]
[374568919,1753359059790,-454.31647254,0.00021095,2]
[374568920,1753359059800,-460.0,0.00021095,2]
[374568921,1753359059809,-460.0,0.00021095,2]
[374568922,1753359059820,-460.0,0.00021095,2]
[374568923,1753359059829,-460.0,0.00021095,2]
[374568924,1753359059838,-460.0,0.00021095,2]
[374568925,1753359059849,-270.26812957,0.00021095,2]
[374568926,1753359059859,-460.0,0.00021095,2]
[374568927,1753359059868,-460.0,0.00021095,2]
[374568928,1753359059877,-460.0,0.00021095,2]
[374568929,1753359059887,-460.0,0.00021095,2]
[374568930,1753359059896,-460.0,0.00021095,2]
[374568931,1753359059905,-460.0,0.00021095,2]
[374568932,1753359059915,-460.0,0.00021095,2]
[374568933,1753359059924,-460.0,0.00021095,2]
[374568934,1753359059933,-460.0,0.00021095,2]
[374568935,1753359059942,-460.0,0.00021095,2]
[374568936,1753359059951,-460.0,0.00021095,2]
[374568937,1753359059961,-460.0,0.00021095,2]
[374568938,1753359059971,-557.88599515,0.00021095,2]
[374568939,1753359059981,-460.0,0.00021095,2]
[374568940,1753359059991,-460.0,0.00021095,2]
[374568941,1753359060002,-468.46542472,0.00021095,2]
[374568942,1753359060011,-460.0,0.00021095,2]
[374568943,1753359060021,-460.0,0.00021095,2]
[374568944,1753359060031,-460.0,0.00021095,2]
[374568945,1753359060040,-230.13542408,0.00021095,2]
[374568946,1753359060050,-530.38,0.00021095,2]
[374568947,1753359060061,-598.54,0.00021095,2]
[374568948,1753359060070,-589.49,0.00021095,2]
[374568949,1753359060081,-460.0,0.00021095,2]
[374568950,1753359060091,-460.0,0.00021095,2]
[374568951,1753359060100,-460.0,0.00021095,2]
[374568952,1753359060110,-460.0,0.00021095,2]
[374568953,1753359060120,-460.0,0.00021095,2]
[374568954,1753359060130,-460.0,0.00021095,2]
[374568955,1753359060140,-2288.96,0.00021095,2]
[374568956,1753359060150,-3226.86,0.00021095,2]
[374568957,1753359060160,-460.0,0.00021095,2]
[374568958,1753359060169,-549.71,0.00021095,2]
[374568959,1753359060180,-460.0,0.00021095,2]
[374568960,1753359060190,-460.0,0.00021095,2]
[374568961,1753359060200,-460.0,0.00021095,2]
[374568962,1753359060210,-1346.17,0.00021095,2]
[374568963,1753359060219,-460.0,0.00021095,2]
[374568964,1753359060230,-460.0,0.00021095,2]
[374568965,1753359060240,-1622.45,0.00021095,2]
[374568966,1753359060250,-460.0,0.00021095,2]
[374568967,1753359060260,-501.83,0.00021095,2]
[374568968,1753359060270,-558.57,0.00021095,2]
[374568969,1753359060279,-1151.1,0.00021095,2]
[374568970,1753359060289,-3987.66,0.00021095,2]
[374568971,1753359060299,-460.0,0.00021095,2]
[374568972,1753359060309,-1227.26,0.00021095,2]
[374568973,1753359060320,-599.14,0.00021095,2]
[374568974,1753359060330,-460.0,0.00021095,2]
[374568975,1753359060340,-1102.32,0.00021095,2]
[374568976,1753359060349,-643.03,0.00021095,2]
[374568977,1753359060359,-721.5,0.00021095,2]
[374568978,1753359060368,-536.66,0.00021095,2]
[374568979,1753359060378,-460.0,0.00021095,2]
[374568980,1753359060388,-460.0,0.00021095,2]
[374568981,1753359060397,-460.0,0.00021095,2]
[374568982,1753359060408,-460.0,0.00021095,2]
[374568983,1753359060418,-460.0,0.00021095,2]
[374568984,1753359060427,-1239.72,0.00021095,2]
[374568985,1753359060437,-460.0,0.00021095,2]
[374568986,1753359060446,-460.0,0.00021095,2]
[374568987,1753359060455,-474.28,0.00021095,2]
[374568988,1753359060465,-695.52,0.00021095,2]
[374568989,1753359060474,-614.93,0.00021095,2]
[374568990,1753359060483,-170.32,0.00021095,2]
[374568991,1753359060493,-460.0,0.00021095,2]
[374568992,1753359060503,-602.97,0.00021095,2]
[374568993,1753359060512,-460.0,0.00021095,2]
[374568994,1753359060521,-460.0,0.00021095,2]
[374568995,1753359060531,-460.0,0.00021095,2]
[374568996,1753359060541,-547.38,0.00021095,2]
[374568997,1753359060551,-460.0,0.00021095,2]
[374568998,1753359060561,-460.0,0.00021095,2]
[374568999,1753359060571,-570.67,0.00021095,2]
[374569000,1753359060580,-2410.32,0.00021095,2]
[374569001,1753359060589,-460.0,0.00021095,2]
[374569002,1753359060599,-460.0,0.00021095,2]
[374569003,1753359060609,-573.06,0.00021095,2]
[374569004,1753359060622,-573.59,0.00021095,2]
[374569005,1753359060632,-460.0,0.00021095,2]
[374569006,1753359060641,-464.70089885,0.00021095,2]
[374569007,1753359060651,-701.0,0.00021095,2]
[374569008,1753359060661,-460.0,0.00021095,2]
[374569009,1753359060670,-5756.37,0.00021095,2]
[374569010,1753359060680,-1810.46,0.00021095,2]
[374569011,1753359060689,-959.34,0.00021095,2]
[374569012,1753359060699,-460.0,0.00021095,2]
[374569013,1753359060708,-460.0,0.00021095,2]
[374569014,1753359060718,-707.55,0.00021095,2]
[374569015,1753359060727,-460.0,0.00021095,2]
[374569016,1753359060736,-944.6,0.00021095,2]
[374569017,1753359060746,-460.0,0.00021095,2]
[374569018,1753359060755,-1286.44,0.00021095,2]
[374569019,1753359060765,-460.0,0.00021095,2]
[374569020,1753359060777,-533.7,0.00021095,2]
[374569021,1753359060787,-460.0,0.00021095,2]
[374569022,1753359060797,-764.53,0.00021095,2]
[374569023,1753359060806,-460.0,0.00021095,2]
[374569024,1753359060817,-460.0,0.00021095,2]
[374569025,1753359060827,-2933.32,0.00021095,2]
[374569026,1753359060940,-460.0,0.00021095,2]
[374569027,1753359060949,-479.16,0.00021095,2]
[374569028,1753359060959,-575.0,0.00021095,2]
[374569029,1753359060969,-3445.18,0.00021095,2]
[374569030,1753359060979,-626.2,0.00021095,2]
[374569031,1753359060989,-179.463855,0.00021095,2]
[374569032,1753359060998,-460.0,0.00021095,2]
[374569033,1753359061008,-1738.24,0.00021095,2]
[374569034,1753359061018,-460.0,0.00021095,2]
[374569035,1753359061027,-179.463855,0.00021095,2]
[374569036,1753359061037,-1496.43,0.00021095,2]
[374569037,1753359061047,-460.0,0.00021095,2]
[374569038,1753359061056,-460.0,0.00021095,2]
[374569039,1753359061066,-460.0,0.00021095,2]
[374569040,1753359061075,-594.34,0.00021095,2]
[374569041,1753359061085,-460.0,0.00021095,2]
[374569042,1753359061095,-460.0,0.00021095,2]
[374569043,1753359061105,-272.6,0.00021117,4]
[374569044,1753359061114,-2101.69450456,0.00021141,4]
[374569045,1753359061126,-2101.69450456,0.00021348,5]
[374569046,1753359061135,-151.0,0.00021369,2]
[374569047,1753359061145,-151.0,0.00021369,2]
[374569048,1753359061155,-460.0,0.00021369,2]
[374569049,1753359061164,-460.0,0.00021369,2]
[374569050,1753359061174,-460.0,0.00021369,2]
[374569051,1753359061184,-460.0,0.00021369,2]
[374569052,1753359061194,-460.0,0.00021369,2]
[374569053,1753359061204,-460.0,0.00021369,2]
[374569054,1753359061215,-460.0,0.00021369,2]
[374569055,1753359061224,-460.0,0.00021369,2]
[374569056,1753359061234,-460.0,0.00021369,2]
[374569057,1753359061244,-460.0,0.00021369,2]
[374569058,1753359061253,-460.0,0.00021369,2]
[374569059,1753359061263,-460.0,0.00021369,2]
[374569060,1753359061272,-460.0,0.00021369,2]
[374569061,1753359061282,-460.0,0.00021369,2]
[374569062,1753359061291,-460.0,0.00021369,2]
[374569063,1753359061301,-460.0,0.00021369,2]
[374569064,1753359061311,-460.0,0.00021369,2]
[374569065,1753359061322,-460.0,0.00021369,2]
[374569066,1753359061332,-460.0,0.00021369,2]
[374569067,1753359061342,-460.0,0.00021369,2]
[374569068,1753359061351,-460.0,0.00021369,2]
[374569069,1753359061361,-530.38,0.00021369,2]
[374569070,1753359061377,-598.54,0.00021369,2]
[374569071,1753359061387,-589.49,0.00021369,2]
[374569072,1753359061398,-460.0,0.00021369,2]
[374569073,1753359061408,-460.0,0.00021369,2]
[374569074,1753359061418,-460.0,0.00021369,2]
[374569075,1753359061428,-460.0,0.00021369,2]
[374569076,1753359061438,-460.0,0.00021369,2]
[374569077,1753359061447,-198.82698452,0.00021369,2]
[374569078,1753359061457,-2288.96,0.00021369,2]
[374569079,1753359061467,-3226.86,0.00021369,2]
[374569080,1753359061477,-460.0,0.00021369,2]
[374569081,1753359061486,-549.71,0.00021369,2]
[374569082,1753359061495,-460.0,0.00021369,2]
[374569083,1753359061505,-460.0,0.00021369,2]
[374569084,1753359061514,-460.0,0.00021369,2]
[374569085,1753359061523,-1346.17,0.00021369,2]
[374569086,1753359061533,-460.0,0.00021369,2]
[374569087,1753359061543,-335.15952573,0.00021369,2]
[374569088,1753359061552,-1622.45,0.00021369,2]
[374569089,1753359061561,-460.0,0.00021369,2]
[374569090,1753359061571,-501.83,0.00021369,2]
[374569091,1753359061580,-558.57,0.00021369,2]
[374569092,1753359061590,-1151.1,0.00021369,2]
[374569093,1753359061599,-3987.66,0.00021369,2]
[374569094,1753359061609,-467.63122922,0.00021369,2]
[374569095,1753359061619,-1227.26,0.00021369,2]
[374569096,1753359061629,-599.14,0.00021369,2]
[374569097,1753359061639,-460.0,0.00021369,2]
[374569098,1753359061648,-1102.32,0.00021369,2]
[374569099,1753359061658,-643.03,0.00021369,2]
[374569100,1753359061667,-721.5,0.00021369,2]
[374569101,1753359061676,-536.66,0.00021369,2]
[374569102,1753359061686,-460.0,0.00021369,2]
[374569103,1753359061695,-460.0,0.00021369,2]
[374569104,1753359061704,-460.0,0.00021369,2]
[374569105,1753359061714,-460.0,0.00021369,2]
[374569106,1753359061723,-460.0,0.00021369,2]
[374569107,1753359061732,-1239.72,0.00021369,2]
[374569108,1753359061742,-460.0,0.00021369,2]
[374569109,1753359061752,-460.0,0.00021369,2]
[374569110,1753359061761,-474.28,0.00021369,2]
[374569111,1753359061771,-695.52,0.00021369,2]
[374569112,1753359061784,-614.93,0.00021369,2]
[374569113,1753359061793,-460.0,0.00021369,2]
[374569114,1753359061803,-602.97,0.00021369,2]
[374569115,1753359061812,-460.0,0.00021369,2]
[374569116,1753359061822,-460.0,0.00021369,2]
[374569117,1753359061832,-460.0,0.00021369,2]
[374569118,1753359061841,-547.38,0.00021369,2]
[374569119,1753359061853,-460.0,0.00021369,2]
[374569120,1753359061863,-460.0,0.00021369,2]
[374569121,1753359061873,-570.67,0.00021369,2]
[374569122,1753359061883,-460.0,0.00021369,2]
[374569123,1753359061893,-2410.32,0.00021369,2]
[374569124,1753359061903,-460.0,0.00021369,2]
[374569125,1753359061913,-573.06,0.00021369,2]
[374569126,1753359061922,-573.59,0.00021369,2]
[374569127,1753359061931,-460.0,0.00021369,2]
[374569128,1753359061941,-701.0,0.00021369,2]
[374569129,1753359061951,-460.0,0.00021369,2]
[374569130,1753359061961,-5756.37,0.00021369,2]
[374569131,1753359061971,-1810.46,0.00021369,2]
[374569132,1753359061982,-959.34,0.00021369,2]
[374569133,1753359061993,-460.0,0.00021369,2]
[374569134,1753359062003,-460.0,0.00021369,2]
[374569135,1753359062012,-707.55,0.00021369,2]
[374569136,1753359062022,-460.0,0.00021369,2]
[374569137,1753359062032,-944.6,0.00021369,2]
[374569138,1753359062042,-460.0,0.00021369,2]
[374569139,1753359062051,-1286.44,0.00021369,2]
[374569140,1753359062060,-460.0,0.00021369,2]
[374569141,1753359062070,-533.7,0.00021369,2]
[374569142,1753359062079,-460.0,0.00021369,2]
[374569143,1753359062088,-764.53,0.00021369,2]
[374569144,1753359062098,-533.43309577,0.00021369,2]
[374569145,1753359062108,-460.0,0.00021369,2]
[374569146,1753359062117,-2933.32,0.00021369,2]
[374569147,1753359062127,-460.0,0.00021369,2]
[374569148,1753359062137,-479.16,0.00021369,2]
[374569149,1753359062147,-575.0,0.00021369,2]
[374569150,1753359062156,-3445.18,0.00021369,2]
[374569151,1753359062166,-626.2,0.00021369,2]
[374569152,1753359062176,-460.0,0.00021369,2]
[374569153,1753359062185,-1738.24,0.00021369,2]
[374569154,1753359062195,-460.0,0.00021369,2]
[374569155,1753359062205,-1496.43,0.00021369,2]
[374569156,1753359062214,-460.0,0.00021369,2]
[374569157,1753359062224,-460.0,0.00021369,2]
[374569158,1753359062235,-460.0,0.00021369,2]
[374569159,1753359062245,-594.34,0.00021369,2]
[374569160,1753359062254,-460.0,0.00021369,2]
[374569161,1753359062264,-495.91762537,0.00021369,2]
[374569162,1753359062273,-272.6,0.00021461,4]
[374569163,1753359062283,-474.34331691,0.00021496,2]
[374569164,1753359062292,-500.0,0.00021498,2]
[374569165,1753359062302,-500.0,0.00021511,2]
[374569166,1753359062311,-289.549182,0.00021526,2]
[374569167,1753359062321,-289.549182,0.00021526,2]
[374569168,1753359062331,-916.81750488,0.00021543,2]
[374569169,1753359062340,-1601.60913326,0.00021543,2]
[374569170,1753359062351,-360.0,0.0002155,2]
[374569171,1753359062361,-2101.69450456,0.00021555,5]
[374569172,1753359062370,-151.0,0.00021643,2]
[374569173,1753359062380,-151.0,0.00021643,2]
[374569174,1753359062390,-460.0,0.00021643,2]
[374569175,1753359062399,-544.04902487,0.00021643,2]
[374569176,1753359062408,-460.0,0.00021643,2]
[374569177,1753359062418,-460.0,0.00021643,2]
[374569178,1753359062427,-460.0,0.00021643,2]
[374569179,1753359062438,-460.0,0.00021643,2]
[374569180,1753359062447,-460.0,0.00021643,2]
[374569181,1753359062456,-442.88783519,0.00021643,2]
[374569182,1753359062465,-460.0,0.00021643,2]
[374569183,1753359062474,-460.0,0.00021643,2]
[374569184,1753359062483,-460.0,0.00021643,2]
[374569185,1753359062493,-460.0,0.00021643,2]
[374569186,1753359062503,-460.0,0.00021643,2]
[374569187,1753359062512,-460.0,0.00021643,2]
[374569188,1753359062521,-460.0,0.00021643,2]
[374569189,1753359062531,-460.0,0.00021643,2]
[374569190,1753359062540,-460.0,0.00021643,2]
[374569191,1753359062550,-460.0,0.00021643,2]
[374569192,1753359062559,-460.0,0.00021643,2]
[374569193,1753359062569,-460.0,0.00021643,2]
[374569194,1753359062578,-557.92247939,0.00021643,2]
[374569195,1753359062587,-530.38,0.00021643,2]
[374569196,1753359062597,-598.54,0.00021643,2]
[374569197,1753359062606,-589.49,0.00021643,2]
[374569198,1753359062616,-460.0,0.00021643,2]
[374569199,1753359062626,-460.0,0.00021643,2]
[374569200,1753359062636,-460.0,0.00021643,2]
[374569201,1753359062645,-460.0,0.00021643,2]
[374569202,1753359062655,-460.0,0.00021643,2]
[374569203,1753359062664,-2288.96,0.00021643,2]
[374569204,1753359062673,-3226.86,0.00021643,2]
[374569205,1753359062683,-336.67,0.00021643,2]
[374569206,1753359062691,-549.71,0.00021643,2]
[374569207,1753359062700,-460.0,0.00021643,2]
[374569208,1753359062711,-460.0,0.00021643,2]
[374569209,1753359062720,-460.0,0.00021643,2]
[374569210,1753359062730,-1346.17,0.00021643,2]
[374569211,1753359062739,-460.0,0.00021643,2]
[374569212,1753359062749,-1622.45,0.00021643,2]
[374569213,1753359062759,-460.0,0.00021643,2]
[374569214,1753359062770,-501.83,0.00021643,2]
[374569215,1753359062786,-558.57,0.00021643,2]
[374569216,1753359062796,-1151.1,0.00021643,2]
[374569217,1753359062807,-3987.66,0.00021643,2]
[374569218,1753359062818,-1227.26,0.00021643,2]
[374569219,1753359062827,-599.14,0.00021643,2]
[374569220,1753359062837,-1102.32,0.00021643,2]
[374569221,1753359062848,-643.03,0.00021643,2]
[374569222,1753359062860,-721.5,0.00021643,2]
[374569223,1753359062871,-536.66,0.00021643,2]
[374569224,1753359062880,-173.21,0.00021643,2]
[374569225,1753359062890,-460.0,0.00021643,2]
[374569226,1753359062901,-460.63738917,0.00021643,2]
[374569227,1753359062910,-460.0,0.00021643,2]
[374569228,1753359062919,-549.22267384,0.00021643,2]
[374569229,1753359062929,-1239.72,0.00021643,2]
[374569230,1753359062939,-460.0,0.00021643,2]
[374569231,1753359062948,-396.03568953,0.00021643,2]
[374569232,1753359062957,-474.28,0.00021643,2]
[374569233,1753359062967,-695.52,0.00021643,2]
[374569234,1753359062976,-614.93,0.00021643,2]
[374569235,1753359063093,-460.0,0.00021643,2]
[374569236,1753359063105,-602.97,0.00021643,2]
[374569237,1753359063115,-460.0,0.00021643,2]
[374569238,1753359063125,-460.0,0.00021643,2]
[374569239,1753359063135,-547.38,0.00021643,2]
[374569240,1753359063146,-151.0,0.00021643,2]
[374569241,1753359063156,-151.0,0.00021643,2]
[374569242,1753359063167,-270.06177904,0.00021643,2]
[374569243,1753359063178,-460.0,0.00021643,2]
[374569244,1753359063188,-570.67,0.00021643,2]
[374569245,1753359063198,-460.0,0.00021643,2]
[374569246,1753359063209,-2410.32,0.00021643,2]
[374569247,1753359063219,-460.0,0.00021643,2]
[374569248,1753359063229,-573.06,0.00021643,2]
[374569249,1753359063239,-573.59,0.00021643,2]
[374569250,1753359063250,-460.0,0.00021643,2]
[374569251,1753359063260,-701.0,0.00021643,2]
[374569252,1753359063270,-460.0,0.00021643,2]
[374569253,1753359063280,-5756.37,0.00021643,2]
[374569254,1753359063290,-1810.46,0.00021643,2]
[374569255,1753359063300,-959.34,0.00021643,2]
[374569256,1753359063310,-460.0,0.00021643,2]
[374569257,1753359063320,-460.0,0.00021643,2]
[374569258,1753359063331,-707.55,0.00021643,2]
[374569259,1753359063341,-460.0,0.00021643,2]
[374569260,1753359063351,-944.6,0.00021643,2]
[374569261,1753359063362,-357.00621842,0.00021643,2]
[374569262,1753359063373,-151.0,0.00021643,2]
[374569263,1753359063383,-1286.44,0.00021643,2]
[374569264,1753359063392,-460.0,0.00021643,2]
[374569265,1753359063403,-533.7,0.00021643,2]
[374569266,1753359063414,-460.0,0.00021643,2]
[374569267,1753359063424,-764.53,0.00021643,2]
[374569268,1753359063434,-460.0,0.00021643,2]
[374569269,1753359063445,-2933.32,0.00021643,2]
[374569270,1753359063455,-460.0,0.00021643,2]
[374569271,1753359063466,-479.16,0.00021643,2]
[374569272,1753359063476,-575.0,0.00021643,2]
[374569273,1753359063486,-3445.18,0.00021643,2]
[374569274,1753359063496,-626.2,0.00021643,2]
[374569275,1753359063506,-460.0,0.00021643,2]
[374569276,1753359063516,-1738.24,0.00021643,2]
[374569277,1753359063526,-460.0,0.00021643,2]
[374569278,1753359063537,-1496.43,0.00021643,2]
[374569279,1753359063546,-460.0,0.00021643,2]
[374569280,1753359063556,-460.0,0.00021643,2]
[374569281,1753359063566,-460.0,0.00021643,2]
[374569282,1753359063576,-594.34,0.00021643,2]
[374569283,1753359063586,-460.0,0.00021643,2]
[374569284,1753359063596,-2101.69450456,0.00021762,5]
[374569285,1753359063606,-272.6,0.00021805,5]
[374569286,1753359063616,-215.0738,0.00021821,2]
[374569287,1753359063629,-25000.0,0.00021821,2]
[374569288,1753359063638,-3154.12167562,0.00021821,2]
[374569289,1753359063648,-460.0,0.00021917,2]
[374569290,1753359063657,-460.0,0.00021917,2]
[374569291,1753359063667,-269.56,0.00021917,2]
[374569292,1753359063678,-460.0,0.00021917,2]
[374569293,1753359063687,-460.0,0.00021917,2]
[374569294,1753359063697,-460.0,0.00021917,2]
[374569295,1753359063708,-460.0,0.00021917,2]
[374569296,1753359063717,-460.0,0.00021917,2]
[374569297,1753359063727,-460.0,0.00021917,2]
[374569298,1753359063737,-460.0,0.00021917,2]
[374569299,1753359063747,-470.8700511,0.00021917,2]
[374569300,1753359063758,-460.0,0.00021917,2]
[374569301,1753359063768,-460.0,0.00021917,2]
[374569302,1753359063782,-421.52778543,0.00021917,2]
[374569303,1753359063792,-214.44820513,0.00021917,2]
[374569304,1753359063802,-370.171953,0.00021917,2]
[374569305,1753359063811,-460.0,0.00021917,2]
[374569306,1753359063822,-391.48640666,0.00021917,2]
[374569307,1753359063832,-530.38,0.00021917,2]
[374569308,1753359063842,-598.54,0.00021917,2]
[374569309,1753359063853,-589.49,0.00021917,2]
[374569310,1753359063863,-460.0,0.00021917,2]
[374569311,1753359063875,-460.0,0.00021917,2]
[374569312,1753359063885,-460.0,0.00021917,2]
[374569313,1753359063895,-460.0,0.00021917,2]
[374569314,1753359063905,-460.0,0.00021917,2]
[374569315,1753359063914,-2288.96,0.00021917,2]
[374569316,1753359063924,-3226.86,0.00021917,2]
[374569317,1753359063935,-549.71,0.00021917,2]
[374569318,1753359063946,-460.0,0.00021917,2]
[374569319,1753359063956,-460.0,0.00021917,2]
[374569320,1753359063965,-460.0,0.00021917,2]
[374569321,1753359063975,-1346.17,0.00021917,2]